Workbook

Sheet Ianuarie
A1: IANUARIE
A2: Vânzări online | C2: ID licitaţie | D2: Descriere element | E2: Preţ de achiziţie | F2: Preţ de vânzare | G2: Comisioane online | H2: Comisioane PayPal | I2: Comisioane carte de credit | J2: Tarife livrare | K2: Comisioane livrare | L2: Vânzare - profit/pierderi | M2: Livrare - profit/pierderi | N2: Total - profit/pierderi
A3: An | C3: TS001 | D3: Element 1 | E3: 5.00 lei | F3: 4.00 lei | G3: 2.00 lei | H3: 1.50 lei | I3: 0.00 lei | J3: 4.00 lei | K3: 2.00 lei | L3: =IFERROR(VânzăriIanuarie[Preţ de vânzare]-(VânzăriIanuarie[Preţ de achiziţie]+VânzăriIanuarie[Comisioane online]+VânzăriIanuarie[Comisioane PayPal]+VânzăriIanuarie[Comisioane carte de credit]),"") -> -4.50 lei | M3: =VânzăriIanuarie[Tarife livrare]-VânzăriIanuarie[Comisioane livrare] -> 2.00 lei | N3: =VânzăriIanuarie[Vânzare - profit/pierderi]+VânzăriIanuarie[Livrare - profit/pierderi] -> -2.50 lei
A4: 2012 | C4: TP004 | D4: Element 2 | E4: 2.00 lei | F4: 30.00 lei | G4: 0.50 lei | H4: 0.50 lei | J4: 4.00 lei | K4: 5.50 lei | L4: =IFERROR(VânzăriIanuarie[Preţ de vânzare]-(VânzăriIanuarie[Preţ de achiziţie]+VânzăriIanuarie[Comisioane online]+VânzăriIanuarie[Comisioane PayPal]+VânzăriIanuarie[Comisioane carte de credit]),"") -> 27.00 lei | M4: =VânzăriIanuarie[Tarife livrare]-VânzăriIanuarie[Comisioane livrare] -> -1.50 lei | N4: =VânzăriIanuarie[Vânzare - profit/pierderi]+VânzăriIanuarie[Livrare - profit/pierderi] -> 25.50 lei
C5: RS99 | D5: Element 3 | E5: 17.00 lei | F5: 23.00 lei | G5: 2.00 lei | I5: 2.00 lei | J5: 3.00 lei | K5: 2.00 lei | L5: =IFERROR(VânzăriIanuarie[Preţ de vânzare]-(VânzăriIanuarie[Preţ de achiziţie]+VânzăriIanuarie[Comisioane online]+VânzăriIanuarie[Comisioane PayPal]+VânzăriIanuarie[Comisioane carte de credit]),"") -> 2.00 lei | M5: =VânzăriIanuarie[Tarife livrare]-VânzăriIanuarie[Comisioane livrare] -> 1.00 lei | N5: =VânzăriIanuarie[Vânzare - profit/pierderi]+VânzăriIanuarie[Livrare - profit/pierderi] -> 3.00 lei
A6: Total Profit/pierderi | C6: ST001 | D6: Element 4 | E6: 120.00 lei | F6: 180.00 lei | G6: 2.00 lei | H6: 1.50 lei | J6: 3.00 lei | K6: 2.00 lei | L6: =IFERROR(VânzăriIanuarie[Preţ de vânzare]-(VânzăriIanuarie[Preţ de achiziţie]+VânzăriIanuarie[Comisioane online]+VânzăriIanuarie[Comisioane PayPal]+VânzăriIanuarie[Comisioane carte de credit]),"") -> 56.50 lei | M6: =VânzăriIanuarie[Tarife livrare]-VânzăriIanuarie[Comisioane livrare] -> 1.00 lei | N6: =VânzăriIanuarie[Vânzare - profit/pierderi]+VânzăriIanuarie[Livrare - profit/pierderi] -> 57.50 lei
A7: =VânzăriIanuarie[[#Totals],[Total - profit/pierderi]] -> 89.00 lei | C7: ST001 | D7: Element 5 | E7: 10.00 lei | F7: 12.00 lei | G7: 2.00 lei | H7: 1.50 lei | J7: 14.00 lei | K7: 7.00 lei | L7: =IFERROR(VânzăriIanuarie[Preţ de vânzare]-(VânzăriIanuarie[Preţ de achiziţie]+VânzăriIanuarie[Comisioane online]+VânzăriIanuarie[Comisioane PayPal]+VânzăriIanuarie[Comisioane carte de credit]),"") -> -1.50 lei | M7: =VânzăriIanuarie[Tarife livrare]-VânzăriIanuarie[Comisioane livrare] -> 7.00 lei | N7: =VânzăriIanuarie[Vânzare - profit/pierderi]+VânzăriIanuarie[Livrare - profit/pierderi] -> 5.50 lei
C8: Total | D8: ="Articole vândute: "&SUBTOTAL(103,VânzăriIanuarie[Descriere element]) -> Articole vândute: 5 | E8: =SUBTOTAL(109,VânzăriIanuarie[Preţ de achiziţie]) -> 154.00 lei | F8: =SUBTOTAL(109,VânzăriIanuarie[Preţ de vânzare]) -> 249.00 lei | G8: =SUBTOTAL(109,VânzăriIanuarie[Comisioane online]) -> 8.50 lei | H8: =SUBTOTAL(109,VânzăriIanuarie[Comisioane PayPal]) -> 5.00 lei | I8: =SUBTOTAL(109,VânzăriIanuarie[Comisioane carte de credit]) -> 2.00 lei | J8: =SUBTOTAL(109,VânzăriIanuarie[Tarife livrare]) -> 28.00 lei | K8: =SUBTOTAL(109,VânzăriIanuarie[Comisioane livrare]) -> 18.50 lei | L8: =SUBTOTAL(109,VânzăriIanuarie[Vânzare - profit/pierderi]) -> 79.50 lei | M8: =SUBTOTAL(109,VânzăriIanuarie[Livrare - profit/pierderi]) -> 9.50 lei | N8: =SUBTOTAL(109,VânzăriIanuarie[Total - profit/pierderi]) -> 89.00 lei
A9: Tendinţă Profit/Pierdere

Sheet Februarie
A1: FEBRUARIE
A2: Vânzări online | C2: ID licitaţie | D2: Descriere element | E2: Preţ de achiziţie | F2: Preţ de vânzare | G2: Comisioane online | H2: Comisioane PayPal | I2: Comisioane carte de credit | J2: Tarife livrare | K2: Comisioane livrare | L2: Vânzare - profit/pierderi | M2: Livrare - profit/pierderi | N2: Total - profit/pierderi
A3: An | C3: TS020 | D3: Element 1 | E3: 10.00 lei | F3: 175.00 lei | G3: 3.00 lei | H3: 1.50 lei | I3: 0.00 lei | J3: 7.00 lei | K3: 5.00 lei | L3: =IFERROR(VânzăriFebruarie[Preţ de vânzare]-(VânzăriFebruarie[Preţ de achiziţie]+VânzăriFebruarie[Comisioane online]+VânzăriFebruarie[Comisioane PayPal]+VânzăriFebruarie[Comisioane carte de credit]),"") -> 160.50 lei | M3: =VânzăriFebruarie[Tarife livrare]-VânzăriFebruarie[Comisioane livrare] -> 2.00 lei | N3: =VânzăriFebruarie[Vânzare - profit/pierderi]+VânzăriFebruarie[Livrare - profit/pierderi] -> 162.50 lei
A4: =AnVânzări -> 2012 | C4: TS021 | D4: Element 2 | E4: 32.00 lei | F4: 100.00 lei | G4: 3.00 lei | I4: 3.20 lei | J4: 20.00 lei | K4: 13.00 lei | L4: =IFERROR(VânzăriFebruarie[Preţ de vânzare]-(VânzăriFebruarie[Preţ de achiziţie]+VânzăriFebruarie[Comisioane online]+VânzăriFebruarie[Comisioane PayPal]+VânzăriFebruarie[Comisioane carte de credit]),"") -> 61.80 lei | M4: =VânzăriFebruarie[Tarife livrare]-VânzăriFebruarie[Comisioane livrare] -> 7.00 lei | N4: =VânzăriFebruarie[Vânzare - profit/pierderi]+VânzăriFebruarie[Livrare - profit/pierderi] -> 68.80 lei
C5: TS022 | D5: Element 3 | E5: 3.00 lei | F5: 7.00 lei | G5: 2.00 lei | I5: 2.00 lei | J5: 0.50 lei | K5: 1.20 lei | L5: =IFERROR(VânzăriFebruarie[Preţ de vânzare]-(VânzăriFebruarie[Preţ de achiziţie]+VânzăriFebruarie[Comisioane online]+VânzăriFebruarie[Comisioane PayPal]+VânzăriFebruarie[Comisioane carte de credit]),"") -> 0.00 lei | M5: =VânzăriFebruarie[Tarife livrare]-VânzăriFebruarie[Comisioane livrare] -> -0.70 lei | N5: =VânzăriFebruarie[Vânzare - profit/pierderi]+VânzăriFebruarie[Livrare - profit/pierderi] -> -0.70 lei
A6: Total Profit/pierderi | C6: TS023 | D6: Element 4 | E6: 22.00 lei | F6: 18.00 lei | G6: 3.00 lei | H6: 1.50 lei | J6: 7.00 lei | K6: 10.00 lei | L6: =IFERROR(VânzăriFebruarie[Preţ de vânzare]-(VânzăriFebruarie[Preţ de achiziţie]+VânzăriFebruarie[Comisioane online]+VânzăriFebruarie[Comisioane PayPal]+VânzăriFebruarie[Comisioane carte de credit]),"") -> -8.50 lei | M6: =VânzăriFebruarie[Tarife livrare]-VânzăriFebruarie[Comisioane livrare] -> -3.00 lei | N6: =VânzăriFebruarie[Vânzare - profit/pierderi]+VânzăriFebruarie[Livrare - profit/pierderi] -> -11.50 lei
A7: =VânzăriFebruarie[[#Totals],[Total - profit/pierderi]] -> 224.60 lei | C7: TS024 | D7: Element 5 | E7: 10.00 lei | F7: 12.00 lei | G7: 2.00 lei | H7: 1.50 lei | J7: 14.00 lei | K7: 7.00 lei | L7: =IFERROR(VânzăriFebruarie[Preţ de vânzare]-(VânzăriFebruarie[Preţ de achiziţie]+VânzăriFebruarie[Comisioane online]+VânzăriFebruarie[Comisioane PayPal]+VânzăriFebruarie[Comisioane carte de credit]),"") -> -1.50 lei | M7: =VânzăriFebruarie[Tarife livrare]-VânzăriFebruarie[Comisioane livrare] -> 7.00 lei | N7: =VânzăriFebruarie[Vânzare - profit/pierderi]+VânzăriFebruarie[Livrare - profit/pierderi] -> 5.50 lei
C8: Total | D8: ="Articole vândute: "&SUBTOTAL(103,VânzăriFebruarie[Descriere element]) -> Articole vândute: 5 | E8: =SUBTOTAL(109,VânzăriFebruarie[Preţ de achiziţie]) -> 77.00 lei | F8: =SUBTOTAL(109,VânzăriFebruarie[Preţ de vânzare]) -> 312.00 lei | G8: =SUBTOTAL(109,VânzăriFebruarie[Comisioane online]) -> 13.00 lei | H8: =SUBTOTAL(109,VânzăriFebruarie[Comisioane PayPal]) -> 4.50 lei | I8: =SUBTOTAL(109,VânzăriFebruarie[Comisioane carte de credit]) -> 5.20 lei | J8: =SUBTOTAL(109,VânzăriFebruarie[Tarife livrare]) -> 48.50 lei | K8: =SUBTOTAL(109,VânzăriFebruarie[Comisioane livrare]) -> 36.20 lei | L8: =SUBTOTAL(109,VânzăriFebruarie[Vânzare - profit/pierderi]) -> 212.30 lei | M8: =SUBTOTAL(109,VânzăriFebruarie[Livrare - profit/pierderi]) -> 12.30 lei | N8: =SUBTOTAL(109,VânzăriFebruarie[Total - profit/pierderi]) -> 224.60 lei
A9: Tendinţă Profit/Pierdere

Sheet Martie
A1: MARTIE
A2: Vânzări online | C2: ID licitaţie | D2: Descriere element | E2: Preţ de achiziţie | F2: Preţ de vânzare | G2: Comisioane online | H2: Comisioane PayPal | I2: Comisioane carte de credit | J2: Tarife livrare | K2: Comisioane livrare | L2: Vânzare - profit/pierderi | M2: Livrare - profit/pierderi | N2: Total - profit/pierderi
A3: An | L3: =IFERROR(VânzăriMartie[Preţ de vânzare]-(VânzăriMartie[Preţ de achiziţie]+VânzăriMartie[Comisioane online]+VânzăriMartie[Comisioane PayPal]+VânzăriMartie[Comisioane carte de credit]),"") -> 0.00 lei | M3: =VânzăriMartie[Tarife livrare]-VânzăriMartie[Comisioane livrare] -> 0.00 lei | N3: =VânzăriMartie[Vânzare - profit/pierderi]+VânzăriMartie[Livrare - profit/pierderi] -> 0.00 lei
A4: =AnVânzări -> 2012 | L4: =IFERROR(VânzăriMartie[Preţ de vânzare]-(VânzăriMartie[Preţ de achiziţie]+VânzăriMartie[Comisioane online]+VânzăriMartie[Comisioane PayPal]+VânzăriMartie[Comisioane carte de credit]),"") -> 0.00 lei | M4: =VânzăriMartie[Tarife livrare]-VânzăriMartie[Comisioane livrare] -> 0.00 lei | N4: =VânzăriMartie[Vânzare - profit/pierderi]+VânzăriMartie[Livrare - profit/pierderi] -> 0.00 lei
L5: =IFERROR(VânzăriMartie[Preţ de vânzare]-(VânzăriMartie[Preţ de achiziţie]+VânzăriMartie[Comisioane online]+VânzăriMartie[Comisioane PayPal]+VânzăriMartie[Comisioane carte de credit]),"") -> 0.00 lei | M5: =VânzăriMartie[Tarife livrare]-VânzăriMartie[Comisioane livrare] -> 0.00 lei | N5: =VânzăriMartie[Vânzare - profit/pierderi]+VânzăriMartie[Livrare - profit/pierderi] -> 0.00 lei
A6: Total Profit/pierderi | L6: =IFERROR(VânzăriMartie[Preţ de vânzare]-(VânzăriMartie[Preţ de achiziţie]+VânzăriMartie[Comisioane online]+VânzăriMartie[Comisioane PayPal]+VânzăriMartie[Comisioane carte de credit]),"") -> 0.00 lei | M6: =VânzăriMartie[Tarife livrare]-VânzăriMartie[Comisioane livrare] -> 0.00 lei | N6: =VânzăriMartie[Vânzare - profit/pierderi]+VânzăriMartie[Livrare - profit/pierderi] -> 0.00 lei
A7: =VânzăriMartie[[#Totals],[Total - profit/pierderi]] -> 0.00 lei | L7: =IFERROR(VânzăriMartie[Preţ de vânzare]-(VânzăriMartie[Preţ de achiziţie]+VânzăriMartie[Comisioane online]+VânzăriMartie[Comisioane PayPal]+VânzăriMartie[Comisioane carte de credit]),"") -> 0.00 lei | M7: =VânzăriMartie[Tarife livrare]-VânzăriMartie[Comisioane livrare] -> 0.00 lei | N7: =VânzăriMartie[Vânzare - profit/pierderi]+VânzăriMartie[Livrare - profit/pierderi] -> 0.00 lei
C8: Total | D8: ="Articole vândute: "&SUBTOTAL(103,VânzăriMartie[Descriere element]) -> Articole vândute: 0 | E8: =SUBTOTAL(109,VânzăriMartie[Preţ de achiziţie]) -> 0.00 lei | F8: =SUBTOTAL(109,VânzăriMartie[Preţ de vânzare]) -> 0.00 lei | G8: =SUBTOTAL(109,VânzăriMartie[Comisioane online]) -> 0.00 lei | H8: =SUBTOTAL(109,VânzăriMartie[Comisioane PayPal]) -> 0.00 lei | I8: =SUBTOTAL(109,VânzăriMartie[Comisioane carte de credit]) -> 0.00 lei | J8: =SUBTOTAL(109,VânzăriMartie[Tarife livrare]) -> 0.00 lei | K8: =SUBTOTAL(109,VânzăriMartie[Comisioane livrare]) -> 0.00 lei | L8: =SUBTOTAL(109,VânzăriMartie[Vânzare - profit/pierderi]) -> 0.00 lei | M8: =SUBTOTAL(109,VânzăriMartie[Livrare - profit/pierderi]) -> 0.00 lei | N8: =SUBTOTAL(109,VânzăriMartie[Total - profit/pierderi]) -> 0.00 lei
A9: Tendinţă Profit/Pierdere

Sheet Aprilie
A1: APRILIE
A2: Vânzări online | C2: ID licitaţie | D2: Descriere element | E2: Preţ de achiziţie | F2: Preţ de vânzare | G2: Comisioane online | H2: Comisioane PayPal | I2: Comisioane carte de credit | J2: Tarife livrare | K2: Comisioane livrare | L2: Vânzare - profit/pierderi | M2: Livrare - profit/pierderi | N2: Total - profit/pierderi
A3: An | M3: =VânzăriAprilie[Tarife livrare]-VânzăriAprilie[Comisioane livrare] -> 0.00 lei | N3: =VânzăriAprilie[Vânzare - profit/pierderi]+VânzăriAprilie[Livrare - profit/pierderi] -> 0.00 lei
A4: =AnVânzări -> 2012 | M4: =VânzăriAprilie[Tarife livrare]-VânzăriAprilie[Comisioane livrare] -> 0.00 lei | N4: =VânzăriAprilie[Vânzare - profit/pierderi]+VânzăriAprilie[Livrare - profit/pierderi] -> 0.00 lei
M5: =VânzăriAprilie[Tarife livrare]-VânzăriAprilie[Comisioane livrare] -> 0.00 lei | N5: =VânzăriAprilie[Vânzare - profit/pierderi]+VânzăriAprilie[Livrare - profit/pierderi] -> 0.00 lei
A6: Total Profit/pierderi | M6: =VânzăriAprilie[Tarife livrare]-VânzăriAprilie[Comisioane livrare] -> 0.00 lei | N6: =VânzăriAprilie[Vânzare - profit/pierderi]+VânzăriAprilie[Livrare - profit/pierderi] -> 0.00 lei
A7: =VânzăriAprilie[[#Totals],[Total - profit/pierderi]] -> 0.00 lei | M7: =VânzăriAprilie[Tarife livrare]-VânzăriAprilie[Comisioane livrare] -> 0.00 lei | N7: =VânzăriAprilie[Vânzare - profit/pierderi]+VânzăriAprilie[Livrare - profit/pierderi] -> 0.00 lei
C8: Total | D8: ="Articole vândute: "&SUBTOTAL(103,VânzăriAprilie[Descriere element]) -> Articole vândute: 0 | E8: =SUBTOTAL(109,VânzăriAprilie[Preţ de achiziţie]) -> 0.00 lei | F8: =SUBTOTAL(109,VânzăriAprilie[Preţ de vânzare]) -> 0.00 lei | G8: =SUBTOTAL(109,VânzăriAprilie[Comisioane online]) -> 0.00 lei | H8: =SUBTOTAL(109,VânzăriAprilie[Comisioane PayPal]) -> 0.00 lei | I8: =SUBTOTAL(109,VânzăriAprilie[Comisioane carte de credit]) -> 0.00 lei | J8: =SUBTOTAL(109,VânzăriAprilie[Tarife livrare]) -> 0.00 lei | K8: =SUBTOTAL(109,VânzăriAprilie[Comisioane livrare]) -> 0.00 lei | L8: =SUBTOTAL(109,VânzăriAprilie[Vânzare - profit/pierderi]) -> 0.00 lei | M8: =SUBTOTAL(109,VânzăriAprilie[Livrare - profit/pierderi]) -> 0.00 lei | N8: =SUBTOTAL(109,VânzăriAprilie[Total - profit/pierderi]) -> 0.00 lei
A9: Tendinţă Profit/Pierdere

Sheet Mai
A1: MAI
A2: Vânzări online | C2: ID licitaţie | D2: Descriere element | E2: Preţ de achiziţie | F2: Preţ de vânzare | G2: Comisioane online | H2: Comisioane PayPal | I2: Comisioane carte de credit | J2: Tarife livrare | K2: Comisioane livrare | L2: Vânzare - profit/pierderi | M2: Livrare - profit/pierderi | N2: Total - profit/pierderi
A3: An | M3: =VânzăriMai[Tarife livrare]-VânzăriMai[Comisioane livrare] -> 0.00 lei | N3: =VânzăriMai[Vânzare - profit/pierderi]+VânzăriMai[Livrare - profit/pierderi] -> 0.00 lei
A4: =AnVânzări -> 2012 | M4: =VânzăriMai[Tarife livrare]-VânzăriMai[Comisioane livrare] -> 0.00 lei | N4: =VânzăriMai[Vânzare - profit/pierderi]+VânzăriMai[Livrare - profit/pierderi] -> 0.00 lei
M5: =VânzăriMai[Tarife livrare]-VânzăriMai[Comisioane livrare] -> 0.00 lei | N5: =VânzăriMai[Vânzare - profit/pierderi]+VânzăriMai[Livrare - profit/pierderi] -> 0.00 lei
A6: Total Profit/pierderi | M6: =VânzăriMai[Tarife livrare]-VânzăriMai[Comisioane livrare] -> 0.00 lei | N6: =VânzăriMai[Vânzare - profit/pierderi]+VânzăriMai[Livrare - profit/pierderi] -> 0.00 lei
A7: =VânzăriMai[[#Totals],[Total - profit/pierderi]] -> 0.00 lei | M7: =VânzăriMai[Tarife livrare]-VânzăriMai[Comisioane livrare] -> 0.00 lei | N7: =VânzăriMai[Vânzare - profit/pierderi]+VânzăriMai[Livrare - profit/pierderi] -> 0.00 lei
C8: Total | D8: ="Articole vândute: "&SUBTOTAL(103,VânzăriMai[Descriere element]) -> Articole vândute: 0 | E8: =SUBTOTAL(109,VânzăriMai[Preţ de achiziţie]) -> 0.00 lei | F8: =SUBTOTAL(109,VânzăriMai[Preţ de vânzare]) -> 0.00 lei | G8: =SUBTOTAL(109,VânzăriMai[Comisioane online]) -> 0.00 lei | H8: =SUBTOTAL(109,VânzăriMai[Comisioane PayPal]) -> 0.00 lei | I8: =SUBTOTAL(109,VânzăriMai[Comisioane carte de credit]) -> 0.00 lei | J8: =SUBTOTAL(109,VânzăriMai[Tarife livrare]) -> 0.00 lei | K8: =SUBTOTAL(109,VânzăriMai[Comisioane livrare]) -> 0.00 lei | L8: =SUBTOTAL(109,VânzăriMai[Vânzare - profit/pierderi]) -> 0.00 lei | M8: =SUBTOTAL(109,VânzăriMai[Livrare - profit/pierderi]) -> 0.00 lei | N8: =SUBTOTAL(109,VânzăriMai[Total - profit/pierderi]) -> 0.00 lei
A9: Tendinţă Profit/Pierdere

Sheet Iunie
A1: IUNIE
A2: Vânzări online | C2: ID licitaţie | D2: Descriere element | E2: Preţ de achiziţie | F2: Preţ de vânzare | G2: Comisioane online | H2: Comisioane PayPal | I2: Comisioane carte de credit | J2: Tarife livrare | K2: Comisioane livrare | L2: Vânzare - profit/pierderi | M2: Livrare - profit/pierderi | N2: Total - profit/pierderi
A3: An | M3: =VânzăriIunie[Tarife livrare]-VânzăriIunie[Comisioane livrare] -> 0.00 lei | N3: =VânzăriIunie[Vânzare - profit/pierderi]+VânzăriIunie[Livrare - profit/pierderi] -> 0.00 lei
A4: =AnVânzări -> 2012 | M4: =VânzăriIunie[Tarife livrare]-VânzăriIunie[Comisioane livrare] -> 0.00 lei | N4: =VânzăriIunie[Vânzare - profit/pierderi]+VânzăriIunie[Livrare - profit/pierderi] -> 0.00 lei
M5: =VânzăriIunie[Tarife livrare]-VânzăriIunie[Comisioane livrare] -> 0.00 lei | N5: =VânzăriIunie[Vânzare - profit/pierderi]+VânzăriIunie[Livrare - profit/pierderi] -> 0.00 lei
A6: Total Profit/pierderi | M6: =VânzăriIunie[Tarife livrare]-VânzăriIunie[Comisioane livrare] -> 0.00 lei | N6: =VânzăriIunie[Vânzare - profit/pierderi]+VânzăriIunie[Livrare - profit/pierderi] -> 0.00 lei
A7: =VânzăriIunie[[#Totals],[Total - profit/pierderi]] -> 0.00 lei | M7: =VânzăriIunie[Tarife livrare]-VânzăriIunie[Comisioane livrare] -> 0.00 lei | N7: =VânzăriIunie[Vânzare - profit/pierderi]+VânzăriIunie[Livrare - profit/pierderi] -> 0.00 lei
C8: Total | D8: ="Articole vândute: "&SUBTOTAL(103,VânzăriIunie[Descriere element]) -> Articole vândute: 0 | E8: =SUBTOTAL(109,VânzăriIunie[Preţ de achiziţie]) -> 0.00 lei | F8: =SUBTOTAL(109,VânzăriIunie[Preţ de vânzare]) -> 0.00 lei | G8: =SUBTOTAL(109,VânzăriIunie[Comisioane online]) -> 0.00 lei | H8: =SUBTOTAL(109,VânzăriIunie[Comisioane PayPal]) -> 0.00 lei | I8: =SUBTOTAL(109,VânzăriIunie[Comisioane carte de credit]) -> 0.00 lei | J8: =SUBTOTAL(109,VânzăriIunie[Tarife livrare]) -> 0.00 lei | K8: =SUBTOTAL(109,VânzăriIunie[Comisioane livrare]) -> 0.00 lei | L8: =SUBTOTAL(109,VânzăriIunie[Vânzare - profit/pierderi]) -> 0.00 lei | M8: =SUBTOTAL(109,VânzăriIunie[Livrare - profit/pierderi]) -> 0.00 lei | N8: =SUBTOTAL(109,VânzăriIunie[Total - profit/pierderi]) -> 0.00 lei
A9: Tendinţă Profit/Pierdere

Sheet Iulie
A1: IULIE
A2: Vânzări online | C2: ID licitaţie | D2: Descriere element | E2: Preţ de achiziţie | F2: Preţ de vânzare | G2: Comisioane online | H2: Comisioane PayPal | I2: Comisioane carte de credit | J2: Tarife livrare | K2: Comisioane livrare | L2: Vânzare - profit/pierderi | M2: Livrare - profit/pierderi | N2: Total - profit/pierderi
A3: An | M3: =VânzăriIulie[Tarife livrare]-VânzăriIulie[Comisioane livrare] -> 0.00 lei | N3: =VânzăriIulie[Vânzare - profit/pierderi]+VânzăriIulie[Livrare - profit/pierderi] -> 0.00 lei
A4: =AnVânzări -> 2012 | M4: =VânzăriIulie[Tarife livrare]-VânzăriIulie[Comisioane livrare] -> 0.00 lei | N4: =VânzăriIulie[Vânzare - profit/pierderi]+VânzăriIulie[Livrare - profit/pierderi] -> 0.00 lei
M5: =VânzăriIulie[Tarife livrare]-VânzăriIulie[Comisioane livrare] -> 0.00 lei | N5: =VânzăriIulie[Vânzare - profit/pierderi]+VânzăriIulie[Livrare - profit/pierderi] -> 0.00 lei
A6: Total Profit/pierderi | M6: =VânzăriIulie[Tarife livrare]-VânzăriIulie[Comisioane livrare] -> 0.00 lei | N6: =VânzăriIulie[Vânzare - profit/pierderi]+VânzăriIulie[Livrare - profit/pierderi] -> 0.00 lei
A7: =VânzăriIulie[[#Totals],[Total - profit/pierderi]] -> 0.00 lei | M7: =VânzăriIulie[Tarife livrare]-VânzăriIulie[Comisioane livrare] -> 0.00 lei | N7: =VânzăriIulie[Vânzare - profit/pierderi]+VânzăriIulie[Livrare - profit/pierderi] -> 0.00 lei
C8: Total | D8: ="Articole vândute: "&SUBTOTAL(103,VânzăriIulie[Descriere element]) -> Articole vândute: 0 | E8: =SUBTOTAL(109,VânzăriIulie[Preţ de achiziţie]) -> 0.00 lei | F8: =SUBTOTAL(109,VânzăriIulie[Preţ de vânzare]) -> 0.00 lei | G8: =SUBTOTAL(109,VânzăriIulie[Comisioane online]) -> 0.00 lei | H8: =SUBTOTAL(109,VânzăriIulie[Comisioane PayPal]) -> 0.00 lei | I8: =SUBTOTAL(109,VânzăriIulie[Comisioane carte de credit]) -> 0.00 lei | J8: =SUBTOTAL(109,VânzăriIulie[Tarife livrare]) -> 0.00 lei | K8: =SUBTOTAL(109,VânzăriIulie[Comisioane livrare]) -> 0.00 lei | L8: =SUBTOTAL(109,VânzăriIulie[Vânzare - profit/pierderi]) -> 0.00 lei | M8: =SUBTOTAL(109,VânzăriIulie[Livrare - profit/pierderi]) -> 0.00 lei | N8: =SUBTOTAL(109,VânzăriIulie[Total - profit/pierderi]) -> 0.00 lei
A9: Tendinţă Profit/Pierdere

Sheet August
A1: AUGUST
A2: Vânzări online | C2: ID licitaţie | D2: Descriere element | E2: Preţ de achiziţie | F2: Preţ de vânzare | G2: Comisioane online | H2: Comisioane PayPal | I2: Comisioane carte de credit | J2: Tarife livrare | K2: Comisioane livrare | L2: Vânzare - profit/pierderi | M2: Livrare - profit/pierderi | N2: Total - profit/pierderi
A3: An | M3: =VânzăriAugust[Tarife livrare]-VânzăriAugust[Comisioane livrare] -> 0.00 lei | N3: =VânzăriAugust[Vânzare - profit/pierderi]+VânzăriAugust[Livrare - profit/pierderi] -> 0.00 lei
A4: =AnVânzări -> 2012 | M4: =VânzăriAugust[Tarife livrare]-VânzăriAugust[Comisioane livrare] -> 0.00 lei | N4: =VânzăriAugust[Vânzare - profit/pierderi]+VânzăriAugust[Livrare - profit/pierderi] -> 0.00 lei
M5: =VânzăriAugust[Tarife livrare]-VânzăriAugust[Comisioane livrare] -> 0.00 lei | N5: =VânzăriAugust[Vânzare - profit/pierderi]+VânzăriAugust[Livrare - profit/pierderi] -> 0.00 lei
A6: Total Profit/pierderi | M6: =VânzăriAugust[Tarife livrare]-VânzăriAugust[Comisioane livrare] -> 0.00 lei | N6: =VânzăriAugust[Vânzare - profit/pierderi]+VânzăriAugust[Livrare - profit/pierderi] -> 0.00 lei
A7: =VânzăriAugust[[#Totals],[Total - profit/pierderi]] -> 0.00 lei | M7: =VânzăriAugust[Tarife livrare]-VânzăriAugust[Comisioane livrare] -> 0.00 lei | N7: =VânzăriAugust[Vânzare - profit/pierderi]+VânzăriAugust[Livrare - profit/pierderi] -> 0.00 lei
C8: Total | D8: ="Articole vândute: "&SUBTOTAL(103,VânzăriAugust[Descriere element]) -> Articole vândute: 0 | E8: =SUBTOTAL(109,VânzăriAugust[Preţ de achiziţie]) -> 0.00 lei | F8: =SUBTOTAL(109,VânzăriAugust[Preţ de vânzare]) -> 0.00 lei | G8: =SUBTOTAL(109,VânzăriAugust[Comisioane online]) -> 0.00 lei | H8: =SUBTOTAL(109,VânzăriAugust[Comisioane PayPal]) -> 0.00 lei | I8: =SUBTOTAL(109,VânzăriAugust[Comisioane carte de credit]) -> 0.00 lei | J8: =SUBTOTAL(109,VânzăriAugust[Tarife livrare]) -> 0.00 lei | K8: =SUBTOTAL(109,VânzăriAugust[Comisioane livrare]) -> 0.00 lei | L8: =SUBTOTAL(109,VânzăriAugust[Vânzare - profit/pierderi]) -> 0.00 lei | M8: =SUBTOTAL(109,VânzăriAugust[Livrare - profit/pierderi]) -> 0.00 lei | N8: =SUBTOTAL(109,VânzăriAugust[Total - profit/pierderi]) -> 0.00 lei
A9: Tendinţă Profit/Pierdere

Sheet Septembrie
A1: SEPTEMBRIE
A2: Vânzări online | C2: ID licitaţie | D2: Descriere element | E2: Preţ de achiziţie | F2: Preţ de vânzare | G2: Comisioane online | H2: Comisioane PayPal | I2: Comisioane carte de credit | J2: Tarife livrare | K2: Comisioane livrare | L2: Vânzare - profit/pierderi | M2: Livrare - profit/pierderi | N2: Total - profit/pierderi
A3: An | M3: =VânzăriSeptembrie[Tarife livrare]-VânzăriSeptembrie[Comisioane livrare] -> 0.00 lei | N3: =VânzăriSeptembrie[Vânzare - profit/pierderi]+VânzăriSeptembrie[Livrare - profit/pierderi] -> 0.00 lei
A4: =AnVânzări -> 2012 | M4: =VânzăriSeptembrie[Tarife livrare]-VânzăriSeptembrie[Comisioane livrare] -> 0.00 lei | N4: =VânzăriSeptembrie[Vânzare - profit/pierderi]+VânzăriSeptembrie[Livrare - profit/pierderi] -> 0.00 lei
M5: =VânzăriSeptembrie[Tarife livrare]-VânzăriSeptembrie[Comisioane livrare] -> 0.00 lei | N5: =VânzăriSeptembrie[Vânzare - profit/pierderi]+VânzăriSeptembrie[Livrare - profit/pierderi] -> 0.00 lei
A6: Total Profit/pierderi | M6: =VânzăriSeptembrie[Tarife livrare]-VânzăriSeptembrie[Comisioane livrare] -> 0.00 lei | N6: =VânzăriSeptembrie[Vânzare - profit/pierderi]+VânzăriSeptembrie[Livrare - profit/pierderi] -> 0.00 lei
A7: =VânzăriSeptembrie[[#Totals],[Total - profit/pierderi]] -> 0.00 lei | M7: =VânzăriSeptembrie[Tarife livrare]-VânzăriSeptembrie[Comisioane livrare] -> 0.00 lei | N7: =VânzăriSeptembrie[Vânzare - profit/pierderi]+VânzăriSeptembrie[Livrare - profit/pierderi] -> 0.00 lei
C8: Total | D8: ="Articole vândute: "&SUBTOTAL(103,VânzăriSeptembrie[Descriere element]) -> Articole vândute: 0 | E8: =SUBTOTAL(109,VânzăriSeptembrie[Preţ de achiziţie]) -> 0.00 lei | F8: =SUBTOTAL(109,VânzăriSeptembrie[Preţ de vânzare]) -> 0.00 lei | G8: =SUBTOTAL(109,VânzăriSeptembrie[Comisioane online]) -> 0.00 lei | H8: =SUBTOTAL(109,VânzăriSeptembrie[Comisioane PayPal]) -> 0.00 lei | I8: =SUBTOTAL(109,VânzăriSeptembrie[Comisioane carte de credit]) -> 0.00 lei | J8: =SUBTOTAL(109,VânzăriSeptembrie[Tarife livrare]) -> 0.00 lei | K8: =SUBTOTAL(109,VânzăriSeptembrie[Comisioane livrare]) -> 0.00 lei | L8: =SUBTOTAL(109,VânzăriSeptembrie[Vânzare - profit/pierderi]) -> 0.00 lei | M8: =SUBTOTAL(109,VânzăriSeptembrie[Livrare - profit/pierderi]) -> 0.00 lei | N8: =SUBTOTAL(109,VânzăriSeptembrie[Total - profit/pierderi]) -> 0.00 lei
A9: Tendinţă Profit/Pierdere

Sheet Octombrie
A1: OCTOMBRIE
A2: Vânzări online | C2: ID licitaţie | D2: Descriere element | E2: Preţ de achiziţie | F2: Preţ de vânzare | G2: Comisioane online | H2: Comisioane PayPal | I2: Comisioane carte de credit | J2: Tarife livrare | K2: Comisioane livrare | L2: Vânzare - profit/pierderi | M2: Livrare - profit/pierderi | N2: Total - profit/pierderi
A3: An | M3: =VânzăriOctombrie[Tarife livrare]-VânzăriOctombrie[Comisioane livrare] -> 0.00 lei | N3: =VânzăriOctombrie[Vânzare - profit/pierderi]+VânzăriOctombrie[Livrare - profit/pierderi] -> 0.00 lei
A4: =AnVânzări -> 2012 | M4: =VânzăriOctombrie[Tarife livrare]-VânzăriOctombrie[Comisioane livrare] -> 0.00 lei | N4: =VânzăriOctombrie[Vânzare - profit/pierderi]+VânzăriOctombrie[Livrare - profit/pierderi] -> 0.00 lei
M5: =VânzăriOctombrie[Tarife livrare]-VânzăriOctombrie[Comisioane livrare] -> 0.00 lei | N5: =VânzăriOctombrie[Vânzare - profit/pierderi]+VânzăriOctombrie[Livrare - profit/pierderi] -> 0.00 lei
A6: Total Profit/pierderi | M6: =VânzăriOctombrie[Tarife livrare]-VânzăriOctombrie[Comisioane livrare] -> 0.00 lei | N6: =VânzăriOctombrie[Vânzare - profit/pierderi]+VânzăriOctombrie[Livrare - profit/pierderi] -> 0.00 lei
A7: =VânzăriOctombrie[[#Totals],[Total - profit/pierderi]] -> 0.00 lei | M7: =VânzăriOctombrie[Tarife livrare]-VânzăriOctombrie[Comisioane livrare] -> 0.00 lei | N7: =VânzăriOctombrie[Vânzare - profit/pierderi]+VânzăriOctombrie[Livrare - profit/pierderi] -> 0.00 lei
C8: Total | D8: ="Articole vândute: "&SUBTOTAL(103,VânzăriOctombrie[Descriere element]) -> Articole vândute: 0 | E8: =SUBTOTAL(109,VânzăriOctombrie[Preţ de achiziţie]) -> 0.00 lei | F8: =SUBTOTAL(109,VânzăriOctombrie[Preţ de vânzare]) -> 0.00 lei | G8: =SUBTOTAL(109,VânzăriOctombrie[Comisioane online]) -> 0.00 lei | H8: =SUBTOTAL(109,VânzăriOctombrie[Comisioane PayPal]) -> 0.00 lei | I8: =SUBTOTAL(109,VânzăriOctombrie[Comisioane carte de credit]) -> 0.00 lei | J8: =SUBTOTAL(109,VânzăriOctombrie[Tarife livrare]) -> 0.00 lei | K8: =SUBTOTAL(109,VânzăriOctombrie[Comisioane livrare]) -> 0.00 lei | L8: =SUBTOTAL(109,VânzăriOctombrie[Vânzare - profit/pierderi]) -> 0.00 lei | M8: =SUBTOTAL(109,VânzăriOctombrie[Livrare - profit/pierderi]) -> 0.00 lei | N8: =SUBTOTAL(109,VânzăriOctombrie[Total - profit/pierderi]) -> 0.00 lei
A9: Tendinţă Profit/Pierdere

Sheet Noiembrie
A1: NOIEMBRIE
A2: Vânzări online | C2: ID licitaţie | D2: Descriere element | E2: Preţ de achiziţie | F2: Preţ de vânzare | G2: Comisioane online | H2: Comisioane PayPal | I2: Comisioane carte de credit | J2: Tarife livrare | K2: Comisioane livrare | L2: Vânzare - profit/pierderi | M2: Livrare - profit/pierderi | N2: Total - profit/pierderi
A3: An | M3: =VânzăriNoiembrie[Tarife livrare]-VânzăriNoiembrie[Comisioane livrare] -> 0.00 lei | N3: =VânzăriNoiembrie[Vânzare - profit/pierderi]+VânzăriNoiembrie[Livrare - profit/pierderi] -> 0.00 lei
A4: =AnVânzări -> 2012 | M4: =VânzăriNoiembrie[Tarife livrare]-VânzăriNoiembrie[Comisioane livrare] -> 0.00 lei | N4: =VânzăriNoiembrie[Vânzare - profit/pierderi]+VânzăriNoiembrie[Livrare - profit/pierderi] -> 0.00 lei
M5: =VânzăriNoiembrie[Tarife livrare]-VânzăriNoiembrie[Comisioane livrare] -> 0.00 lei | N5: =VânzăriNoiembrie[Vânzare - profit/pierderi]+VânzăriNoiembrie[Livrare - profit/pierderi] -> 0.00 lei
A6: Total Profit/pierderi | M6: =VânzăriNoiembrie[Tarife livrare]-VânzăriNoiembrie[Comisioane livrare] -> 0.00 lei | N6: =VânzăriNoiembrie[Vânzare - profit/pierderi]+VânzăriNoiembrie[Livrare - profit/pierderi] -> 0.00 lei
A7: =VânzăriNoiembrie[[#Totals],[Total - profit/pierderi]] -> 0.00 lei | M7: =VânzăriNoiembrie[Tarife livrare]-VânzăriNoiembrie[Comisioane livrare] -> 0.00 lei | N7: =VânzăriNoiembrie[Vânzare - profit/pierderi]+VânzăriNoiembrie[Livrare - profit/pierderi] -> 0.00 lei
C8: Total | D8: ="Articole vândute: "&SUBTOTAL(103,VânzăriNoiembrie[Descriere element]) -> Articole vândute: 0 | E8: =SUBTOTAL(109,VânzăriNoiembrie[Preţ de achiziţie]) -> 0.00 lei | F8: =SUBTOTAL(109,VânzăriNoiembrie[Preţ de vânzare]) -> 0.00 lei | G8: =SUBTOTAL(109,VânzăriNoiembrie[Comisioane online]) -> 0.00 lei | H8: =SUBTOTAL(109,VânzăriNoiembrie[Comisioane PayPal]) -> 0.00 lei | I8: =SUBTOTAL(109,VânzăriNoiembrie[Comisioane carte de credit]) -> 0.00 lei | J8: =SUBTOTAL(109,VânzăriNoiembrie[Tarife livrare]) -> 0.00 lei | K8: =SUBTOTAL(109,VânzăriNoiembrie[Comisioane livrare]) -> 0.00 lei | L8: =SUBTOTAL(109,VânzăriNoiembrie[Vânzare - profit/pierderi]) -> 0.00 lei | M8: =SUBTOTAL(109,VânzăriNoiembrie[Livrare - profit/pierderi]) -> 0.00 lei | N8: =SUBTOTAL(109,VânzăriNoiembrie[Total - profit/pierderi]) -> 0.00 lei
A9: Tendinţă Profit/Pierdere

Sheet Decembrie
A1: DECEMBRIE
A2: Vânzări online | C2: ID licitaţie | D2: Descriere element | E2: Preţ de achiziţie | F2: Preţ de vânzare | G2: Comisioane online | H2: Comisioane PayPal | I2: Comisioane carte de credit | J2: Tarife livrare | K2: Comisioane livrare | L2: Vânzare - profit/pierderi | M2: Livrare - profit/pierderi | N2: Total - profit/pierderi
A3: An | M3: =VânzăriDecembrie[Tarife livrare]-VânzăriDecembrie[Comisioane livrare] -> 0.00 lei | N3: =VânzăriDecembrie[Vânzare - profit/pierderi]+VânzăriDecembrie[Livrare - profit/pierderi] -> 0.00 lei
A4: =AnVânzări -> 2012 | M4: =VânzăriDecembrie[Tarife livrare]-VânzăriDecembrie[Comisioane livrare] -> 0.00 lei | N4: =VânzăriDecembrie[Vânzare - profit/pierderi]+VânzăriDecembrie[Livrare - profit/pierderi] -> 0.00 lei
M5: =VânzăriDecembrie[Tarife livrare]-VânzăriDecembrie[Comisioane livrare] -> 0.00 lei | N5: =VânzăriDecembrie[Vânzare - profit/pierderi]+VânzăriDecembrie[Livrare - profit/pierderi] -> 0.00 lei
A6: Total Profit/pierderi | M6: =VânzăriDecembrie[Tarife livrare]-VânzăriDecembrie[Comisioane livrare] -> 0.00 lei | N6: =VânzăriDecembrie[Vânzare - profit/pierderi]+VânzăriDecembrie[Livrare - profit/pierderi] -> 0.00 lei
A7: =VânzăriDecembrie[[#Totals],[Total - profit/pierderi]] -> 0.00 lei | M7: =VânzăriDecembrie[Tarife livrare]-VânzăriDecembrie[Comisioane livrare] -> 0.00 lei | N7: =VânzăriDecembrie[Vânzare - profit/pierderi]+VânzăriDecembrie[Livrare - profit/pierderi] -> 0.00 lei
C8: Total | D8: ="Articole vândute: "&SUBTOTAL(103,VânzăriDecembrie[Descriere element]) -> Articole vândute: 0 | E8: =SUBTOTAL(109,VânzăriDecembrie[Preţ de achiziţie]) -> 0.00 lei | F8: =SUBTOTAL(109,VânzăriDecembrie[Preţ de vânzare]) -> 0.00 lei | G8: =SUBTOTAL(109,VânzăriDecembrie[Comisioane online]) -> 0.00 lei | H8: =SUBTOTAL(109,VânzăriDecembrie[Comisioane PayPal]) -> 0.00 lei | I8: =SUBTOTAL(109,VânzăriDecembrie[Comisioane carte de credit]) -> 0.00 lei | J8: =SUBTOTAL(109,VânzăriDecembrie[Tarife livrare]) -> 0.00 lei | K8: =SUBTOTAL(109,VânzăriDecembrie[Comisioane livrare]) -> 0.00 lei | L8: =SUBTOTAL(109,VânzăriDecembrie[Vânzare - profit/pierderi]) -> 0.00 lei | M8: =SUBTOTAL(109,VânzăriDecembrie[Livrare - profit/pierderi]) -> 0.00 lei | N8: =SUBTOTAL(109,VânzăriDecembrie[Total - profit/pierderi]) -> 0.00 lei
A9: Tendinţă Profit/Pierdere

Sheet Anul curent - Rezumat
A1: Anul curent
A2: Rezumat | C2: Profit/Pierderi | H2: Anul curent - Profit/Pierderi
A3: An | H3: Lună | I3: Vânzări - profit/pierderi | J3: Livrare - profit/pierderi | K3: Total - profit/pierderi
A4: =AnVânzări -> 2012 | H4: Ianuarie | I4: =VânzăriIanuarie[[#Totals],[Vânzare - profit/pierderi]] -> 79.50 lei | J4: =VânzăriIanuarie[[#Totals],[Livrare - profit/pierderi]] -> 9.50 lei | K4: =IF(AND(RezumatAnCurent[[#This Row],[Vânzări - profit/pierderi]]<>"",RezumatAnCurent[[#This Row],[Livrare - profit/pierderi]]<>""),RezumatAnCurent[[#This Row],[Vânzări - profit/pierderi]]+RezumatAnCurent[[#This Row],[Livrare - profit/pierderi]],"") -> 89.00 lei
H5: Februarie | I5: =VânzăriFebruarie[[#Totals],[Vânzare - profit/pierderi]] -> 212.30 lei | J5: =VânzăriFebruarie[[#Totals],[Livrare - profit/pierderi]] -> 12.30 lei | K5: =IF(AND(RezumatAnCurent[[#This Row],[Vânzări - profit/pierderi]]<>"",RezumatAnCurent[[#This Row],[Livrare - profit/pierderi]]<>""),RezumatAnCurent[[#This Row],[Vânzări - profit/pierderi]]+RezumatAnCurent[[#This Row],[Livrare - profit/pierderi]],"") -> 224.60 lei
A6: Tendinţă lunară vânzări: | H6: Martie | I6: =VânzăriMartie[[#Totals],[Vânzare - profit/pierderi]] -> 0.00 lei | J6: =VânzăriMartie[[#Totals],[Livrare - profit/pierderi]] -> 0.00 lei | K6: =IF(AND(RezumatAnCurent[[#This Row],[Vânzări - profit/pierderi]]<>"",RezumatAnCurent[[#This Row],[Livrare - profit/pierderi]]<>""),RezumatAnCurent[[#This Row],[Vânzări - profit/pierderi]]+RezumatAnCurent[[#This Row],[Livrare - profit/pierderi]],"") -> 0.00 lei
H7: Aprilie | I7: =VânzăriAprilie[[#Totals],[Vânzare - profit/pierderi]] -> 0.00 lei | J7: =VânzăriAprilie[[#Totals],[Livrare - profit/pierderi]] -> 0.00 lei | K7: =IF(AND(RezumatAnCurent[[#This Row],[Vânzări - profit/pierderi]]<>"",RezumatAnCurent[[#This Row],[Livrare - profit/pierderi]]<>""),RezumatAnCurent[[#This Row],[Vânzări - profit/pierderi]]+RezumatAnCurent[[#This Row],[Livrare - profit/pierderi]],"") -> 0.00 lei
H8: Mai | I8: =VânzăriMai[[#Totals],[Vânzare - profit/pierderi]] -> 0.00 lei | J8: =VânzăriMai[[#Totals],[Livrare - profit/pierderi]] -> 0.00 lei | K8: =IF(AND(RezumatAnCurent[[#This Row],[Vânzări - profit/pierderi]]<>"",RezumatAnCurent[[#This Row],[Livrare - profit/pierderi]]<>""),RezumatAnCurent[[#This Row],[Vânzări - profit/pierderi]]+RezumatAnCurent[[#This Row],[Livrare - profit/pierderi]],"") -> 0.00 lei
H9: Iunie | I9: =VânzăriIunie[[#Totals],[Vânzare - profit/pierderi]] -> 0.00 lei | J9: =VânzăriIunie[[#Totals],[Livrare - profit/pierderi]] -> 0.00 lei | K9: =IF(AND(RezumatAnCurent[[#This Row],[Vânzări - profit/pierderi]]<>"",RezumatAnCurent[[#This Row],[Livrare - profit/pierderi]]<>""),RezumatAnCurent[[#This Row],[Vânzări - profit/pierderi]]+RezumatAnCurent[[#This Row],[Livrare - profit/pierderi]],"") -> 0.00 lei
H10: Iulie | I10: =VânzăriIulie[[#Totals],[Vânzare - profit/pierderi]] -> 0.00 lei | J10: =VânzăriIulie[[#Totals],[Livrare - profit/pierderi]] -> 0.00 lei | K10: =IF(AND(RezumatAnCurent[[#This Row],[Vânzări - profit/pierderi]]<>"",RezumatAnCurent[[#This Row],[Livrare - profit/pierderi]]<>""),RezumatAnCurent[[#This Row],[Vânzări - profit/pierderi]]+RezumatAnCurent[[#This Row],[Livrare - profit/pierderi]],"") -> 0.00 lei
H11: August | I11: =VânzăriAugust[[#Totals],[Vânzare - profit/pierderi]] -> 0.00 lei | J11: =VânzăriAugust[[#Totals],[Livrare - profit/pierderi]] -> 0.00 lei | K11: =IF(AND(RezumatAnCurent[[#This Row],[Vânzări - profit/pierderi]]<>"",RezumatAnCurent[[#This Row],[Livrare - profit/pierderi]]<>""),RezumatAnCurent[[#This Row],[Vânzări - profit/pierderi]]+RezumatAnCurent[[#This Row],[Livrare - profit/pierderi]],"") -> 0.00 lei
H12: Septembrie | I12: =VânzăriSeptembrie[[#Totals],[Vânzare - profit/pierderi]] -> 0.00 lei | J12: =VânzăriSeptembrie[[#Totals],[Livrare - profit/pierderi]] -> 0.00 lei | K12: =IF(AND(RezumatAnCurent[[#This Row],[Vânzări - profit/pierderi]]<>"",RezumatAnCurent[[#This Row],[Livrare - profit/pierderi]]<>""),RezumatAnCurent[[#This Row],[Vânzări - profit/pierderi]]+RezumatAnCurent[[#This Row],[Livrare - profit/pierderi]],"") -> 0.00 lei
H13: Octombrie | I13: =VânzăriOctombrie[[#Totals],[Vânzare - profit/pierderi]] -> 0.00 lei | J13: =VânzăriOctombrie[[#Totals],[Livrare - profit/pierderi]] -> 0.00 lei | K13: =IF(AND(RezumatAnCurent[[#This Row],[Vânzări - profit/pierderi]]<>"",RezumatAnCurent[[#This Row],[Livrare - profit/pierderi]]<>""),RezumatAnCurent[[#This Row],[Vânzări - profit/pierderi]]+RezumatAnCurent[[#This Row],[Livrare - profit/pierderi]],"") -> 0.00 lei
H14: Noiembrie | I14: =VânzăriNoiembrie[[#Totals],[Vânzare - profit/pierderi]] -> 0.00 lei | J14: =VânzăriNoiembrie[[#Totals],[Livrare - profit/pierderi]] -> 0.00 lei | K14: =IF(AND(RezumatAnCurent[[#This Row],[Vânzări - profit/pierderi]]<>"",RezumatAnCurent[[#This Row],[Livrare - profit/pierderi]]<>""),RezumatAnCurent[[#This Row],[Vânzări - profit/pierderi]]+RezumatAnCurent[[#This Row],[Livrare - profit/pierderi]],"") -> 0.00 lei
H15: Decembrie | I15: =VânzăriDecembrie[[#Totals],[Vânzare - profit/pierderi]] -> 0.00 lei | J15: =VânzăriDecembrie[[#Totals],[Livrare - profit/pierderi]] -> 0.00 lei | K15: =IF(AND(RezumatAnCurent[[#This Row],[Vânzări - profit/pierderi]]<>"",RezumatAnCurent[[#This Row],[Livrare - profit/pierderi]]<>""),RezumatAnCurent[[#This Row],[Vânzări - profit/pierderi]]+RezumatAnCurent[[#This Row],[Livrare - profit/pierderi]],"") -> 0.00 lei
H16: Total | I16: =SUBTOTAL(109,RezumatAnCurent[Vânzări - profit/pierderi]) -> 291.80 lei | J16: =SUBTOTAL(109,RezumatAnCurent[Livrare - profit/pierderi]) -> 21.80 lei | K16: =SUBTOTAL(109,RezumatAnCurent[Total - profit/pierderi]) -> 313.60 lei
